Cogmind - Beta 9.6 @@@ ROGUE MODE // 2020.09.01 @ 02:35:32 Player: Finestep Result: Destroyed by H-77 Assassin with Coil Gun Performance ------------- Evolutions (7) 3500 Regions Visited (22) 4400 Robots Destroyed (434) 2170 Value Destroyed (21288) 21288 Prototype IDs (23) 460 Alien Tech Used (0) 0 Bonus (12317) 12317 TOTAL SCORE: 44135 Bonus ------- High Alert Combat Kills 2206 Follower Combat Kills 5503 Entered Garrisons 1800 Used RIF Installer 4500 Friendly Fire -1692 Cogmind --------- Core Integrity 0/1300 Matter 290/300 Energy 84/100 System Corruption 20% Temperature Cool (0) Movement Walking (180) Ox2 Location -3/Research Parts ------- > --- POWER (2) -------- (None) > --- PROPULSION (4) --- Flexi-carbon Leg > --- UTILITY (12) ----- Large Storage Unit High-capacity Storage Unit Advanced Visual Processing Unit Advanced Terrain Scan Processor Advanced Thermal Shield Relay Coupler [Grunt] (25) Relay Coupler [Hunter] (2) > --- WEAPON (3) ------- Vibroblade > --- INVENTORY (18) --- Advanced Signal Interpreter Long-range Terrain Scanner Advanced Targeting Computer Advanced Core Analyzer Quantum Capacitor Energy Mantle Relay Coupler [NC] (31) Relay Coupler [Brawler] (33) Relay Coupler [Demolisher] (22) Relay Coupler [Demolisher] (27) Peak State ------------ > --- POWER ------------ Light Nuclear Core Particle Reactor > --- PROPULSION ------- Armored Heavy Treads Armored Wheel Armored Wheel > --- UTILITY ---------- Coolant Network Large Storage Unit Large Storage Unit Large Storage Unit High-capacity Storage Unit Energy Well Advanced Terrain Scan Processor Relay Coupler [NC] Relay Coupler [Grunt] Relay Coupler [Sentry] Relay Coupler [Hunter] > --- WEAPON ----------- Nova Cannon Hardcell Cannon Improved Remote Datajack > --- INVENTORY -------- Light Nuclear Core Armored Wheel Centrium Wheel Improved Cooling System Long-range Terrain Scanner Advanced Core Analyzer Quantum Capacitor Advanced Force Field Advanced Force Field Energy Mantle Hacking Suite Relay Coupler [NC] Relay Coupler [NC] Relay Coupler [NC] Relay Coupler [Swarmer] Relay Coupler [Grunt] Relay Coupler [Grunt] Relay Coupler [Brawler] Relay Coupler [Duelist] Relay Coupler [Demolisher] Relay Coupler [Demolisher] Relay Coupler [Hunter] Relay Coupler [Behemoth] Heavy Proton Cannon Heavy Proton Cannon Heavy Proton Cannon Heavy Proton Cannon Nova Cannon Heavy Rocket Launcher [Rating: 110] Favorites ----------- Power Light Nuclear Core Engine Improved Deuterium Engine Power Core Light Nuclear Core Reactor Light Antimatter Reactor Propulsion Improved Carbon-fiber Leg Treads Light Treads Leg Improved Carbon-fiber Leg Wheel Armored Wheel Hover Unit Improved Airjet Utility High-capacity Storage Unit Device Improved Heat Sink Storage High-capacity Storage Unit Processor Advanced Targeting Computer Hackware Relay Coupler [Grunt] Protection Improved Light Armor Plating Weapon Improved Remote Datajack Energy Gun Small Laser Energy Cannon Heavy Phase Cannon Ballistic Gun Gauss Rifle Ballistic Cannon Hypervelocity Gauss Cannon Launcher Mini Grenade Launcher Special Weapon Improved Remote Datajack Slashing Weapon Great Axe Piercing Weapon Enhanced Force Lance Special Melee Weapon Improved Datajack Build | -11 -10 -10 -9 -8 -8 -8 -8 -7 -7 -7 -7 -6 -6 -6 -6 -5 -5 -5 -5 -4 -4 -3 ------- Run | Scr Mat Min Mat Mat Gar Mat Gar Fac Gar Fac Gar Fac Gar Fac Gar Fac Gar Fac Gar Fac Gar Res Slots Evolved 14 | . . . 2 2 . . . 2 . . . 2 . . . 2 . . . 2 . 2 Power 1 | . . . . . . . . 1 . . . . . . . . . . . . . . Propulsion 2 | . . . . 1 . . . . . . . . . . . 1 . . . . . . Utility 10 | . . . 2 1 . . . 1 . . . 1 . . . 1 . . . 2 . 2 Weapon 1 | . . . . . . . . . . . . 1 . . . . . . . . . . Parts Attached 670 | 6 8 11 37 43 26 11 32 23 39 25 43 31 27 35 31 17 24 15 47 20 35 84 Power 70 | 1 . 2 5 2 1 1 2 3 7 2 4 4 2 4 6 1 3 2 4 3 4 7 Engine 25 | 1 . 1 3 1 . 1 . . 4 1 . 2 2 4 4 . . . 1 . . . Core 34 | . . 1 2 1 1 . 2 3 3 1 4 2 . . 2 1 3 1 3 . 3 1 Reactor 11 | . . . . . . . . . . . . . . . . . . 1 . 3 1 6 Propulsion 121 | 2 . 2 8 8 3 1 4 2 7 4 6 2 8 3 4 3 . 6 20 4 6 18 Treads 34 | 2 . 2 4 6 2 1 1 1 4 2 1 1 . . . . . . 2 . . 5 Leg 50 | . . . 2 . . . . . . . . . 8 3 4 3 . 6 9 4 6 5 Wheel 36 | . . . 2 2 1 . 3 1 3 1 5 1 . . . . . . 9 . . 8 Hover 1 | . . . . . . . . . . 1 . . . . . . . . . . . . Flight . | . . . . . . . . . . . . . . . . . . . . . . . Utility 207 | 1 4 . 8 14 9 3 8 3 12 8 7 9 6 11 10 7 13 3 13 8 13 37 Device 55 | . . . 2 4 2 1 2 2 6 . 2 1 . 1 1 1 5 1 1 3 4 16 Storage 31 | 1 4 . 2 3 2 1 1 . 1 1 . . . 3 . . . . . 2 4 6 Processor 3 | . . . . . . . . . . . . 1 . . . . . . . . . 2 Hackware 62 | . . . . 1 2 . 3 1 1 3 3 5 3 3 6 3 6 1 6 3 2 10 Protection 56 | . . . 4 6 3 1 2 . 4 4 2 2 3 4 3 3 2 1 6 . 3 3 Artifact . | . . . . . . . . . . . . . . . . . . . . . . . Weapon 272 | 2 4 7 16 19 13 6 18 15 13 11 26 16 11 17 11 6 8 4 10 5 12 22 Energy Gun 14 | 2 . . 3 1 . . . . 1 3 2 . . . . . 1 . . . . 1 Energy Cannon 80 | . 3 3 5 8 7 2 3 9 2 1 1 . . 8 5 3 3 3 1 1 2 10 Ballistic Gun 68 | . . 2 7 5 1 3 8 1 6 4 7 7 6 2 1 . . . 1 1 5 1 Ballistic Cannon 12 | . 1 2 1 . . . . . . . . . 1 . . . . 1 3 . 1 2 Launcher 29 | . . . . 5 2 . 1 1 2 . 6 1 1 . 1 1 2 . 1 1 2 2 Special Weapon 40 | . . . . . 1 . 1 . 1 2 6 6 3 5 4 2 2 . 2 2 2 1 Impact Weapon . | . . . . . . . . . . . . . . . . . . . . . . . Slashing Weapon 20 | . . . . . 1 1 2 1 1 1 4 2 . 2 . . . . . . . 5 Piercing Weapon 2 | . . . . . . . . . . . . . . . . . . . 2 . . . Special Melee Weapon 7 | . . . . . 1 . 3 3 . . . . . . . . . . . . . . Unidentified Prototypes 11 | . . . 3 2 . 1 . . . 1 . 1 . . . 1 . . . . . 2 Parts Lost 138 | . 1 5 14 6 3 1 2 5 10 . 5 3 7 6 1 1 . 2 2 5 12 47 Power 22 | . . 2 2 . 1 . . 2 2 . 1 1 2 1 . . . . . . 2 6 Propulsion 36 | . . 2 3 1 . . 1 . 3 . 1 1 . 1 . . . 1 2 2 3 15 Utility 34 | . . . 3 4 . 1 . 1 2 . 2 1 1 . 1 . . 1 . . 3 14 Weapon 46 | . 1 1 6 1 2 . 1 2 3 . 1 . 4 4 . 1 . . . 3 4 12 Highest Loss Streak 17 | . 1 3 3 2 2 1 1 3 5 . 3 1 5 2 1 1 . 2 1 2 6 17 Average Slot Usage (%) 95 | . 96 97 97 90 89 90 87 87 94 99 98 99 99 98 99 99 99 98 98 98 90 88 Engine 5 | . 14 5 5 6 . 2 1 . 7 4 2 2 11 12 9 5 4 . 3 . . . Core 5 | . . 7 4 2 8 6 7 15 4 10 11 10 1 . 3 5 6 10 4 . 7 4 Treads 6 | . 28 26 11 10 9 9 9 7 14 7 7 6 . . . . . . 6 8 . 3 Leg 9 | . . . 4 . . . . . . . . . 19 19 20 23 23 21 8 2 20 2 Wheel 4 | . . . 5 7 9 9 9 10 5 15 13 12 . . . . . . 6 7 . 8 Device 3 | . . . 1 9 5 2 4 5 9 2 5 1 . 2 . 1 3 4 . 1 8 4 Storage 22 | . 24 28 33 27 28 33 27 23 23 23 23 20 20 20 20 17 17 17 17 21 18 20 Processor 3 | . . . . . . . . . . . . 4 6 6 6 5 5 5 5 5 5 5 Hackware 10 | . . . . . 2 . 1 1 4 8 8 18 17 15 15 16 16 16 15 23 11 16 Protection 4 | . . . 8 8 8 8 8 6 6 10 6 1 2 1 2 3 1 . 5 1 3 3 Energy Cannon 6 | . 11 14 4 10 14 13 2 10 3 . 1 . . 6 12 12 10 10 3 4 3 4 Ballistic Gun 5 | . . 1 12 7 1 3 13 2 8 11 8 16 14 5 2 . . . 1 . 1 . Ballistic Cannon 1 | . 10 12 . . . . . . . . . . 4 4 . . . . 4 5 1 1 Special Weapon 2 | . . . . . . . . . . . 2 2 . . 3 4 4 5 4 4 4 2 Naked Turns . | . . . . . . . . . . . . . . . . . . . . . . . Heaviest Build 171 | 11 75 75 95 106 109 109 112 118 130 109 110 114 119 140 156 153 152 140 150 170 171 167 Greatest Support 95 | 40 40 40 40 60 28 28 28 28 60 24 24 24 54 56 54 74 74 74 76 80 95 95 Greatest Overweight (x) 28 | . 1 3 9 4 5 3 8 4 5 4 8 4 5 2 3 2 2 5 10 12 3 28 Average Overweight (x) 2 | . . 1 5 2 3 3 3 3 2 4 4 4 2 1 2 1 1 1 3 6 1 3 Largest Inventory Capacity 40 | 6 20 20 26 26 26 26 26 26 26 26 26 26 26 28 28 28 28 28 28 28 40 38 Average Capacity 26 | 5 15 20 26 26 26 26 26 26 26 26 26 26 26 26 28 28 28 28 28 28 29 28 Most Carried 38 | 6 20 20 26 26 26 26 26 26 26 26 26 26 26 28 28 28 28 28 28 28 36 38 Average Carried 25 | 3 13 18 23 25 25 25 25 25 24 25 25 24 25 25 27 27 26 27 27 27 27 26 Final Capacity 38 | 6 20 20 26 26 26 26 26 26 26 26 26 26 26 28 28 28 28 28 28 28 38 18 Final Carried 36 | 6 20 19 26 26 26 26 26 23 26 26 26 24 26 27 28 28 28 28 28 26 36 11 Class Distribution -------------------- 47% | Botlord-Mutant 19% | Hauler-Mutant 12% | Botlord-Gunner 11% | Bothacker-Mutant 6% | Scavenger-Mutant Dominant Class ---------------- Hauler-Mutant | -10/Materials Hauler-Mutant | -10/Mines Hauler-Mutant | -9/Materials Hauler-Mutant | -8/Materials Hauler-Mutant | -8/Garrison Bothacker-Mutant | -8/Materials Bothacker-Mutant | -8/Garrison Bothacker-Mutant | -7/Factory Scavenger-Mutant | -7/Garrison Bothacker-Mutant | -7/Factory Botlord-Mutant | -7/Garrison Botlord-Mutant | -6/Factory Botlord-Gunner | -6/Garrison Botlord-Mutant | -6/Factory Botlord-Mutant | -6/Garrison Botlord-Mutant | -5/Factory Botlord-Mutant | -5/Garrison Botlord-Mutant | -5/Factory Botlord-Mutant | -5/Garrison Botlord-Mutant | -4/Factory Botlord-Mutant | -4/Garrison Botlord-Mutant | -3/Research Resources | -11 -10 -10 -9 -8 -8 -8 -8 -7 -7 -7 -7 -6 -6 -6 -6 -5 -5 -5 -5 -4 -4 -3 ----------- Run | Scr Mat Min Mat Mat Gar Mat Gar Fac Gar Fac Gar Fac Gar Fac Gar Fac Gar Fac Gar Fac Gar Res Matter Collected 13826 | 206 333 283 554 1260 382 150 768 255 625 236 1039 715 931 1098 569 240 460 131 1153 338 958 1142 Remotely 668 | . . . . 668 . . . . . . . . . . . . . . . . . . Salvage Created 18750 | 99 972 590 1765 2071 823 759 971 692 1059 311 876 964 718 1200 501 91 617 170 837 215 753 1696 Parts 936 | 5 55 29 91 143 45 29 56 25 43 25 39 47 28 39 32 6 29 3 33 14 40 80 Haulers Intercepted 14 | . 2 . 4 4 . 1 . 2 . . . . . 1 . . . . . . . . Recyclers Shooed 19 | . . . 7 2 . . . . . 1 . 1 . 4 . . . . . . . 4 Parts Field Recycled . | . . . . . . . . . . . . . . . . . . . . . . . Retrieved Matter . | . . . . . . . . . . . . . . . . . . . . . . . Parts Self-Destructed . | . . . . . . . . . . . . . . . . . . . . . . . Prevented . | . . . . . . . . . . . . . . . . . . . . . . . Kills | -11 -10 -10 -9 -8 -8 -8 -8 -7 -7 -7 -7 -6 -6 -6 -6 -5 -5 -5 -5 -4 -4 -3 ------- Run | Scr Mat Min Mat Mat Gar Mat Gar Fac Gar Fac Gar Fac Gar Fac Gar Fac Gar Fac Gar Fac Gar Res Combat Hostiles Destroyed 316 | . 18 12 27 45 19 7 21 8 18 6 14 14 14 10 11 . 10 1 10 4 21 26 Melee 12 | . . . . . 1 . . . 1 . . 1 . . . . . . 2 . . 7 Guns 93 | . 4 1 12 14 1 1 15 1 5 5 4 11 7 1 2 . . . 3 . 4 2 Cannons 124 | . 14 11 15 10 10 5 1 3 3 . 2 . 4 9 6 . 10 1 3 4 6 7 AOE 81 | . . . . 20 7 . 4 4 9 1 8 2 3 . 3 . . . 2 . 10 8 Classes Destroyed 19 | 2 7 1 3 2 . 1 . . . . . . . . . . 2 . 1 . . . Worker 33 | . 2 4 1 9 . 1 . 5 . . . 3 . 3 . 3 . . . . . 2 Builder 12 | . 1 2 1 4 . 1 . . . . . . . 1 . . . . . . . 2 Tunneler 5 | 1 . 1 . 1 . 1 . . . . . 1 . . . . . . . . . . Hauler 14 | . 2 . 4 4 . 1 . 2 . . . . . 1 . . . . . . . . Recycler 27 | 1 4 4 5 1 . 2 . 2 . 1 . 1 . 4 . . . 1 . . . 1 Operator 7 | . 1 . 1 4 . 1 . . . . . . . . . . . . . . . . Watcher 13 | . 2 . 2 3 . 1 . 1 . . 1 . . . 1 1 . . . . . 1 Swarmer 98 | . 6 . 3 7 9 . 8 4 3 2 10 3 . 2 6 . 2 1 5 1 16 10 Saboteur 2 | . . . . . . . . . . . . . . . . . . . 2 . . . Grunt 123 | . 12 2 17 23 5 4 9 1 8 1 1 7 10 4 3 . 5 . 3 . 2 6 Brawler 7 | . . . 1 . . . 2 . . . 1 1 1 . 1 . . . . . . . Duelist 8 | . . . 1 3 1 . 1 . . . . . . . . . 1 . . . . 1 Protector 2 | . . . . 2 . . . . . . . . . . . . . . . . . . Sentry 38 | . . . 5 9 2 2 1 1 5 1 1 1 1 2 1 . . . 2 . . 4 Specialist 1 | . . . . . . . . . . . . . . . . . 1 . . . . . Hunter 21 | . . . . 1 2 . . 1 2 . . 2 2 1 1 . . . . 3 2 4 Programmer 12 | . . . . . . 1 . 1 . 2 1 1 . 2 . . 1 . . . 1 2 Behemoth 1 | . . . . . . . . . . . . . . . . . 1 . . . . . Assembled 10 | . . 10 . . . . . . . . . . . . . . . . . . . . Best Kill Streak 11 | 2 5 8 5 11 7 5 4 8 4 4 7 4 6 5 4 2 3 1 2 2 10 6 Combat Bots Only 10 | . 3 5 5 10 7 2 4 6 4 4 7 3 6 2 4 . 3 1 2 2 10 5 Max Kills in Single Turn 4 | 1 1 2 2 4 2 2 2 3 2 2 4 2 2 2 3 2 1 1 2 2 3 4 Gunslinging 1 | . . . . . . . . . . 1 . 1 1 . . . . . . . . . Exploded 4 | . . . . 4 2 . 2 3 2 1 4 1 2 . 3 . . . 2 . 3 3 Melee 1 | . . . . . 1 . . . 1 . . 1 . . . . . . 1 . . 1 Uniques/NPCs Destroyed . | . . . . . . . . . . . . . . . . . . . . . . . Combat | -11 -10 -10 -9 -8 -8 -8 -8 -7 -7 -7 -7 -6 -6 -6 -6 -5 -5 -5 -5 -4 -4 -3 -------- Run | Scr Mat Min Mat Mat Gar Mat Gar Fac Gar Fac Gar Fac Gar Fac Gar Fac Gar Fac Gar Fac Gar Res Damage Taken 29179 | . 605 578 1677 2146 1267 303 1163 961 2040 462 1114 767 1272 1405 643 166 445 663 726 858 1885 8033 Core 3692 | . 135 78 316 149 245 . 148 97 223 31 90 54 237 205 53 16 31 52 45 61 121 1305 Absorbed by Shields 1268 | . . . . . . . 45 . 212 . 78 . . . 89 62 167 . 113 48 262 192 Core Remaining (%) 47 | 100 . 14 21 . . . 1 . . . 37 . . . 35 . . . 85 . 84 . Volleys Fired 1451 | 3 75 53 130 169 56 25 92 36 83 36 71 61 54 72 45 24 56 15 86 26 92 91 Largest 3 | 2 2 2 2 2 2 2 2 2 2 2 2 3 3 3 3 2 2 2 2 2 3 3 Hottest 307 | 80 120 120 120 128 126 126 126 126 143 83 84 88 106 228 286 196 196 220 151 171 140 307 Shots Fired 2528 | 6 149 99 252 321 92 50 170 66 121 55 106 125 125 144 90 35 85 27 108 36 136 130 Gun 1104 | 6 46 10 179 204 15 10 133 22 52 40 64 102 95 38 20 . . . 14 . 50 4 Cannon 1068 | . 103 89 73 101 57 40 27 41 39 6 9 . 16 91 54 22 62 24 39 26 55 94 Launcher 71 | . . . . 16 10 . 3 3 5 . 6 3 4 . 1 1 3 . 2 1 9 4 Special 285 | . . . . . 10 . 7 . 25 9 27 20 10 15 15 12 20 3 53 9 22 28 Kinetic 1205 | . 51 51 129 203 15 10 133 22 43 34 57 102 111 83 20 . . . 40 15 79 7 Thermal 725 | 6 98 48 123 102 15 . 7 8 55 1 21 . . 26 54 22 62 24 13 11 2 27 Explosive 71 | . . . . 16 10 . 3 3 5 . 6 3 4 . 1 1 3 . 2 1 9 4 Electromagnetic 306 | . . . . . 52 40 27 33 18 12 16 . . 20 . . . . . . 24 64 Robot Hit Streak 26 | 5 10 6 18 15 8 16 25 19 26 8 21 10 7 16 10 15 16 14 16 7 22 14 Robot Miss Streak 8 | . 5 5 7 5 5 2 3 3 8 3 2 4 2 4 5 1 2 5 2 2 2 4 Penetration Max 1 | . . . . . . 1 . . . . 1 1 1 1 . . . . 1 1 1 . Secondary Targets 9 | . . . . 1 . . 3 . 1 1 1 1 1 . . . . . . . . . Max Gunslinging Chain 1 | . . . . 1 . . 1 . 1 1 1 1 1 . . . . . . . . . Capacitor 12 | . . . . . . . . . . . . . . . . . . . . . 12 . Shots Hit Robots 1680 | 5 79 49 171 198 64 40 114 46 97 29 84 82 69 101 49 20 53 18 89 20 83 120 Core Hits 785 | 3 39 31 72 125 42 18 36 27 58 14 47 33 40 34 19 6 19 4 18 6 40 54 Critical Hits 57 | . 1 . 2 2 2 1 2 . 4 . 5 1 5 8 1 . . . 11 5 5 2 Critical Kills 19 | . 1 . 1 . . 1 1 . 2 . 2 . 3 2 . . . . 3 2 . 1 Critical Parts Destroyed 34 | . . . 1 2 1 . 1 . 2 . 2 1 2 5 . . . . 8 3 5 1 Melee Attacks 141 | . . . . . 24 3 20 3 4 1 11 7 . 5 . . . . 12 . . 51 Impact . | . . . . . . . . . . . . . . . . . . . . . . . Slashing 111 | . . . . . 20 3 9 . 4 1 11 7 . 5 . . . . . . . 51 Piercing 12 | . . . . . . . . . . . . . . . . . . . 12 . . . Sneak Attacks 16 | . . . . . . . 4 3 . . . 5 . 1 . . . . 1 . . 2 Combat Hostiles 7 | . . . . . . . . 2 . . . 4 . . . . . . 1 . . . Follow-up Attacks 4 | . . . . . . . . . . . . . . . . . . . . . . 4 Damage Inflicted 46101 | 58 1241 912 2232 5899 2873 1174 2440 1382 2476 489 2787 2504 1930 2729 1303 377 1470 622 2525 453 2860 5365 Guns 12270 | 58 371 62 1255 2073 123 166 1391 242 681 425 959 1624 1177 586 261 . . . 226 . 495 95 Cannons 17592 | . 870 843 871 1411 554 926 400 750 864 . 174 . 290 1821 889 377 1393 622 497 453 1424 2163 Explosions 8623 | . . . 106 2415 720 82 304 386 622 64 727 243 463 . 153 . 77 . 348 . 941 972 Melee 6855 | . . . . . 1375 . 259 . 30 . 686 637 . 309 . . . . 1454 . . 2105 Ramming 76 | . . 7 . . . . 9 4 1 . 12 . . 13 . . . . . . . 30 Kinetic 14435 | . 588 487 776 2051 123 166 1391 242 496 404 891 1624 1467 1463 261 . . . 418 122 1330 135 Thermal 11087 | 58 653 418 1350 1433 160 82 157 189 1132 . 341 . . 561 889 377 1393 622 305 331 37 599 Explosive 8029 | . . . . 2415 684 . 224 386 444 64 615 243 463 . 153 . 77 . 348 . 941 972 Electromagnetic 5619 | . . . 106 . 531 926 400 561 373 21 242 . . 383 . . . . . . 552 1524 Impact . | . . . . . . . . . . . . . . . . . . . . . . . Slashing 5401 | . . . . . 1375 . 259 . 30 . 686 637 . 309 . . . . . . . 2105 Piercing 1454 | . . . . . . . . . . . . . . . . . . . 1454 . . . Highest Corruption 20 | . . . 11 . . . 1 . . 1 6 . . . 4 . 2 2 2 3 4 20 Average Corruption 4 | . . . 9 . . . 1 . . 1 5 . . . 4 . 1 2 2 2 3 9 Corruption Purged . | . . . . . . . . . . . . . . . . . . . . . . . Effects 307 | . . . 73 . . . 4 . . 1 64 . . . 28 . 20 5 18 10 45 39 Message Errors 70 | . . . 13 . . . 3 . . 1 13 . . . 4 . 7 3 5 6 9 6 Matter Fused 55 | . . . 12 . . . . . . . 19 . . . 8 . . . . 2 9 5 Heat Flow Errors 41 | . . . 9 . . . . . . . 5 . . . 4 . 8 1 3 1 6 4 Energy Discharges 30 | . . . 7 . . . . . . . 3 . . . 4 . 2 . 3 . 5 6 Parts Rejected 6 | . . . 2 . . . . . . . . . . . 1 . . . . . 1 2 Data Loss (minor) 37 | . . . 4 . . . 1 . . . 10 . . . 5 . 3 . 3 1 8 2 Data Loss (major) 10 | . . . 2 . . . . . . . 6 . . . . . . . . . . 2 Misfires 3 | . . . 2 . . . . . . . 1 . . . . . . . . . . . Alerts 1 | . . . . . . . . . . . . . . . . . . . . . . 1 Misdirections 2 | . . . 2 . . . . . . . . . . . . . . . . . . . Targeting Errors 46 | . . . 15 . . . . . . . 6 . . . 2 . . 1 4 . 7 11 Weapon Failures 6 | . . . 5 . . . . . . . 1 . . . . . . . . . . . Overload Shots . | . . . . . . . . . . . . . . . . . . . . . . . Overflow Damage 1472 | . 32 9 . 79 160 27 11 35 11 . 97 137 20 168 20 . 18 34 184 . 31 399 Projectiles 392 | . 32 9 . 34 10 27 9 35 4 . . . 3 53 20 . 18 34 25 . 11 68 Explosions 256 | . . . . 45 28 . 2 . 7 . 51 . 17 . . . . . 34 . 20 52 Melee 824 | . . . . . 122 . . . . . 46 137 . 115 . . . . 125 . . 279 Knockbacks 34 | . 6 10 . . . . . . . . . . 1 4 . . . . 2 1 8 2 Impact 1 | . . . . . . . . . . . . . . . . . . . . . . 1 Kinetic 27 | . 6 6 . . . . . . . . . . 1 3 . . . . 1 1 8 1 Secondary 6 | . . 4 . . . . . . . . . . . 1 . . . . 1 . . . Self-Inflicted Damage 879 | . . . 79 130 91 . 57 54 86 64 55 . 19 6 . . . . 63 . 66 109 Shots 26 | . . . 2 5 3 . 2 2 2 1 2 . 1 . . . . . 1 . 3 2 Rammed 13 | . . 2 . . . . 1 1 1 . 2 . . 1 . . . . . . . 5 Targets Rammed 13 | . . 2 . . . . 1 1 1 . 2 . . 1 . . . . . . . 5 Kicked . | . . . . . . . . . . . . . . . . . . . . . . . Crushed . | . . . . . . . . . . . . . . . . . . . . . . . Highest Temperature 643 | 36 330 359 333 162 443 302 188 423 333 240 253 175 223 336 425 405 295 270 411 214 199 643 Average Temperature 88 | 18 71 131 109 32 104 102 33 158 118 63 41 43 76 69 100 124 93 83 89 83 64 106 Received Heat Transfer 5468 | . 177 196 609 738 234 117 390 207 556 90 123 165 456 321 116 9 83 . 137 60 31 653 Effects 40 | . 3 3 3 . 1 . . 3 4 . . . . 4 2 2 . . 4 . . 11 Shutdowns 9 | . . . . . 1 . . 1 . . . . . 1 1 . . . 3 . . 2 Energy Bleed 6 | . 3 . . . . . . 1 1 . . . . . . 1 . . . . . . Interference 20 | . . 3 2 . . . . 1 3 . . . . 3 1 1 . . . . . 6 Matter Decay 2 | . . . . . . . . . . . . . . . . . . . 1 . . 1 Damage (minor) 2 | . . . 1 . . . . . . . . . . . . . . . . . . 1 Damage (core) 1 | . . . . . . . . . . . . . . . . . . . . . . 1 Siege Activations . | . . . . . . . . . . . . . . . . . . . . . . . Robots Corrupted 10 | . . . 1 . . 2 1 1 . . . . . . . . . . . . 3 2 Combat Hostiles 5 | . . . . . . 1 1 . . . . . . . . . . . . . 1 2 Parts Fried 33 | . . . . . . 13 2 3 2 . 1 . . 2 . . . . . . 3 7 Impact Corruptions . | . . . . . . . . . . . . . . . . . . . . . . . Robots Melted 1 | . . . . 1 . . . . . . . . . . . . . . . . . . Combat Hostiles 1 | . . . . 1 . . . . . . . . . . . . . . . . . . Parts Melted 22 | . 1 . 2 6 2 . . . 3 . . . 1 1 2 . 3 1 . . . . Heat Transferred 16961 | 125 1442 888 2812 2331 420 50 309 350 2500 . 827 . . 707 1098 402 1328 411 200 200 25 536 Parts Sabotaged 11 | . . . . . . . . . . . . . . . . . . . 11 . . . Parts Stolen . | . . . . . . . . . . . . . . . . . . . . . . . Parts Stripped . | . . . . . . . . . . . . . . . . . . . . . . . Power Chain Reactions 7 | . . . . . 1 1 2 . 2 . 1 . . . . . . . . . . . Missiles Intercepted . | . . . . . . . . . . . . . . . . . . . . . . . Alert | -11 -10 -10 -9 -8 -8 -8 -8 -7 -7 -7 -7 -6 -6 -6 -6 -5 -5 -5 -5 -4 -4 -3 ------- Run | Scr Mat Min Mat Mat Gar Mat Gar Fac Gar Fac Gar Fac Gar Fac Gar Fac Gar Fac Gar Fac Gar Res Peak Influence 1240 | 10 259 86 364 912 1240 923 1164 734 1162 611 932 621 788 519 716 431 673 373 611 577 943 537 Average Influence 497 | 3 131 58 224 512 980 751 791 645 829 387 731 479 642 314 549 276 429 274 384 433 675 313 Maximum Alert Level 4 | . 1 . 1 3 4 3 4 3 4 2 3 2 3 2 3 2 2 1 2 2 3 2 Low Security (%) 15 | 100 74 100 42 3 . . . . . . 9 . . 14 5 27 10 30 16 1 . 30 Level 1 23 | . 25 . 57 18 . . . . . 65 . 6 5 60 14 45 36 69 26 38 16 44 Level 2 37 | . . . . 70 13 24 28 71 16 34 18 93 46 25 64 27 53 . 56 59 41 24 Level 3 21 | . . . . 7 56 75 57 28 73 . 71 . 48 . 15 . . . . . 42 . Level 4 2 | . . . . . 29 . 14 . 9 . . . . . . . . . . . . . Level 5 . | . . . . . . . . . . . . . . . . . . . . . . . High Security . | . . . . . . . . . . . . . . . . . . . . . . . Max Security . | . . . . . . . . . . . . . . . . . . . . . . . Squads Dispatched 74 | . 5 . 2 7 . 3 . 5 . 9 . 9 . 9 . 6 . 1 . 10 . 8 Investigation 17 | . 2 . 1 . . 2 . . . 1 . 4 . 3 . 1 . 1 . 2 . . Extermination 10 | . . . . . . . . . . 1 . 2 . 2 . 1 . . . 2 . 2 Reinforcement 23 | . 3 . 1 3 . 1 . 2 . . . 2 . 1 . 2 . . . 2 . 6 Assault 3 | . . . . 2 . . . . . . . . . . . 1 . . . . . . Garrison 21 | . . . . 2 . . . 3 . 7 . 1 . 3 . 1 . . . 4 . . Intercept . | . . . . . . . . . . . . . . . . . . . . . . . Construction Impeded 8 | . . . . . . . . 1 . . . 1 . . . 1 . . . 1 . 4 Haulers Reinforced 3 | . . . . . . . . 1 . . . 1 . . . . . . . . . 1 Alert ID Control Effect 118 | . . . . . . . 2 . 7 2 . 1 2 16 5 12 11 6 18 14 7 15 Stealth | -11 -10 -10 -9 -8 -8 -8 -8 -7 -7 -7 -7 -6 -6 -6 -6 -5 -5 -5 -5 -4 -4 -3 --------- Run | Scr Mat Min Mat Mat Gar Mat Gar Fac Gar Fac Gar Fac Gar Fac Gar Fac Gar Fac Gar Fac Gar Res Distress Signals 23 | . 2 1 1 5 . . . 3 . 2 . . . 1 . . . . . 2 . 6 Communications Jammed . | . . . . . . . . . . . . . . . . . . . . . . . Distress Signals . | . . . . . . . . . . . . . . . . . . . . . . . Times Spotted 703 | . 31 14 45 75 32 12 38 17 28 13 33 23 27 29 31 13 34 6 46 33 39 84 Peak Tracking Total 10 | . 3 3 5 10 8 3 5 5 5 4 9 4 8 6 4 5 4 3 6 5 7 9 Tactical Retreats 61 | . 1 3 2 10 7 2 5 1 . . 4 2 3 3 1 . 3 . 6 . 1 7 Traps | -11 -10 -10 -9 -8 -8 -8 -8 -7 -7 -7 -7 -6 -6 -6 -6 -5 -5 -5 -5 -4 -4 -3 ------- Run | Scr Mat Min Mat Mat Gar Mat Gar Fac Gar Fac Gar Fac Gar Fac Gar Fac Gar Fac Gar Fac Gar Res Traps Triggered 83 | . . . 1 1 4 . 11 . 6 . 14 . 6 1 4 . 13 3 6 . 9 4 Indirectly . | . . . . . . . . . . . . . . . . . . . . . . . Trap Hack Attempts . | . . . . . . . . . . . . . . . . . . . . . . . Triggered . | . . . . . . . . . . . . . . . . . . . . . . . Disarmed . | . . . . . . . . . . . . . . . . . . . . . . . Reprogrammed . | . . . . . . . . . . . . . . . . . . . . . . . Reused . | . . . . . . . . . . . . . . . . . . . . . . . Traps Extracted . | . . . . . . . . . . . . . . . . . . . . . . . Installed . | . . . . . . . . . . . . . . . . . . . . . . . Triggered . | . . . . . . . . . . . . . . . . . . . . . . . Machines | -11 -10 -10 -9 -8 -8 -8 -8 -7 -7 -7 -7 -6 -6 -6 -6 -5 -5 -5 -5 -4 -4 -3 ---------- Run | Scr Mat Min Mat Mat Gar Mat Gar Fac Gar Fac Gar Fac Gar Fac Gar Fac Gar Fac Gar Fac Gar Res Machines Disabled 75 | . 1 1 5 3 3 . 4 1 5 1 4 3 5 1 4 1 9 2 4 8 7 3 Max in Single Turn 2 | . 1 1 2 2 1 . 1 1 1 1 1 1 1 . 1 . 1 . 1 1 1 1 Garrison Access 4 | . . . . . . . . . . 1 . . . . . 1 . . . 1 . 1 Garrison Relay 37 | . . . . . 3 . 4 . 5 . 4 . 4 . 4 . 4 . 4 . 5 . Machines Sabotaged . | . . . . . . . . . . . . . . . . . . . . . . . Garrisons Compromised . | . . . . . . . . . . . . . . . . . . . . . . . Overloaded Fab Kills . | . . . . . . . . . . . . . . . . . . . . . . . Fab Network Shutdowns . | . . . . . . . . . . . . . . . . . . . . . . . Hacking | -11 -10 -10 -9 -8 -8 -8 -8 -7 -7 -7 -7 -6 -6 -6 -6 -5 -5 -5 -5 -4 -4 -3 --------- Run | Scr Mat Min Mat Mat Gar Mat Gar Fac Gar Fac Gar Fac Gar Fac Gar Fac Gar Fac Gar Fac Gar Res Machines Accessed 62 | . 5 . 7 13 . 3 . 2 . 5 . 5 . 7 . 2 . 3 . 7 . 3 Terminals 30 | . 3 . 4 10 . . . . . 3 . 2 . 3 . . . 1 . 2 . 2 Fabricators 2 | . . . . . . . . . . . . . . . . . . . . 2 . . Repair Stations 6 | . . . . 1 . . . 1 . . . . . 2 . . . 1 . 1 . . Recycling Units 7 | . 2 . 1 . . 1 . . . . . 2 . 1 . . . . . . . . Scanalyzers 4 | . . . 2 1 . 1 . . . . . . . . . . . . . . . . Garrison Access 13 | . . . . 1 . 1 . 1 . 2 . 1 . 1 . 2 . 1 . 2 . 1 Total Hacks 169 | . 14 . 20 35 . 10 . 4 . 15 . 11 . 24 . 6 . 6 . 19 . 5 Successful 96 | . 9 . 8 21 . 9 . 4 . 9 . 4 . 9 . 6 . 4 . 10 . 3 Failed 73 | . 5 . 12 14 . 1 . . . 6 . 7 . 15 . . . 2 . 9 . 2 Catastrophic 19 | . 1 . 2 5 . . . . . 1 . 2 . 4 . . . . . 2 . 2 Database Lockouts . | . . . . . . . . . . . . . . . . . . . . . . . Manual 69 | . 9 . 7 16 . 6 . 1 . 11 . 3 . 6 . 2 . 2 . 5 . 1 Terminals 88 | . 10 . 14 28 . . . . . 11 . 4 . 11 . . . 2 . 5 . 3 Fabricators 6 | . . . . . . . . . . . . . . . . . . . . 6 . . Repair Stations 15 | . . . . 4 . . . 2 . . . . . 5 . . . 1 . 3 . . Recycling Units 17 | . 4 . 2 . . 2 . . . . . 4 . 5 . . . . . . . . Scanalyzers 8 | . . . 4 2 . 2 . . . . . . . . . . . . . . . . Garrison Access 35 | . . . . 1 . 6 . 2 . 4 . 3 . 3 . 6 . 3 . 5 . 2 Terminal Hacks 29 | . 5 . 5 11 . . . . . 4 . . . 3 . . . . . . . 1 Part Schematic 1 | . 1 . . . . . . . . . . . . . . . . . . . . . Robot Schematic 1 | . . . . . . . . . . 1 . . . . . . . . . . . . Robot Analysis 2 | . 1 . 1 . . . . . . . . . . . . . . . . . . . Prototype ID Bank 4 | . . . . 2 . . . . . . . . . 1 . . . . . . . 1 Branch Access Points 3 | . . . 1 1 . . . . . . . . . 1 . . . . . . . . Emergency Access Points 1 | . 1 . . . . . . . . . . . . . . . . . . . . . Scanalyzer Index 1 | . . . 1 . . . . . . . . . . . . . . . . . . . Unreport Threat 3 | . . . . 1 . . . . . 2 . . . . . . . . . . . . Locate Traps 2 | . . . . 1 . . . . . . . . . 1 . . . . . . . . Dispatch Records 1 | . 1 . . . . . . . . . . . . . . . . . . . . . Patrol Status 1 | . . . . . . . . . . 1 . . . . . . . . . . . . Recall Reinforcements 1 | . . . . 1 . . . . . . . . . . . . . . . . . . Hauler Manifests 1 | . . . . 1 . . . . . . . . . . . . . . . . . . Zone Layout 7 | . 1 . 2 4 . . . . . . . . . . . . . . . . . . Fabricator Hacks 3 | . . . . . . . . . . . . . . . . . . . . 3 . . Load Schematic 2 | . . . . . . . . . . . . . . . . . . . . 2 . . Build 1 | . . . . . . . . . . . . . . . . . . . . 1 . . Repair Station Hacks 9 | . . . . 3 . . . 2 . . . . . 2 . . . . . 2 . . Scan Component 5 | . . . . 2 . . . 1 . . . . . 1 . . . . . 1 . . Repair 4 | . . . . 1 . . . 1 . . . . . 1 . . . . . 1 . . Recycling Unit Hacks 4 | . 1 . 1 . . 1 . . . . . 1 . . . . . . . . . . Retrieve Components 4 | . 1 . 1 . . 1 . . . . . 1 . . . . . . . . . . Scanalyzer 4 | . . . . 2 . 2 . . . . . . . . . . . . . . . . Insert Component 2 | . . . . 1 . 1 . . . . . . . . . . . . . . . . Analyze 2 | . . . . 1 . 1 . . . . . . . . . . . . . . . . Garrison Access Hacks 20 | . . . . 1 . 1 . 1 . 2 . 2 . 2 . 4 . 2 . 3 . 2 Unlock Access 9 | . . . . 1 . 1 . 1 . 1 . 1 . 1 . 1 . 1 . 1 . . Seal Access 4 | . . . . . . . . . . 1 . . . . . 1 . . . 1 . 1 Coupler Status 7 | . . . . . . . . . . . . 1 . 1 . 2 . 1 . 1 . 1 Unauthorized Hacks 26 | . 3 . 2 4 . 4 . 1 . 3 . 1 . 2 . 2 . 2 . 2 . . Terminals 10 | . 1 . 1 4 . . . . . 2 . . . 1 . . . . . 1 . . Track 4 | . 1 . 1 1 . . . . . 1 . . . . . . . . . . . . Botnet 3 | . . . . 3 . . . . . . . . . . . . . . . . . . Operators 2 | . . . . . . . . . . 1 . . . . . . . . . 1 . . Search 1 | . . . . . . . . . . . . . . 1 . . . . . . . . Fabricators . | . . . . . . . . . . . . . . . . . . . . . . . Repair Stations 2 | . . . . . . . . . . . . . . . . . . 1 . 1 . . Mechanics 2 | . . . . . . . . . . . . . . . . . . 1 . 1 . . Recycling Units 6 | . 2 . 1 . . 1 . . . . . 1 . 1 . . . . . . . . Tunnel 6 | . 2 . 1 . . 1 . . . . . 1 . 1 . . . . . . . . Scanalyzers . | . . . . . . . . . . . . . . . . . . . . . . . Garrison Access 8 | . . . . . . 3 . 1 . 1 . . . . . 2 . 1 . . . . Restock 3 | . . . . . . 1 . 1 . 1 . . . . . . . . . . . . Reprogram 2 | . . . . . . 1 . . . . . . . . . 1 . . . . . . Eject 3 | . . . . . . 1 . . . . . . . . . 1 . 1 . . . . Data Cores Recovered 1 | . . . . 1 . . . . . . . . . . . . . . . . . . Used . | . . . . . . . . . . . . . . . . . . . . . . . Hacking Detections 57 | . 4 . 6 13 . 2 . 2 . 4 . 5 . 7 . 2 . 2 . 7 . 3 Full Trace Events 7 | . . . . . . . . . . 1 . 3 . 1 . . . . . 2 . . Feedback Events 1 | . . . . . . . . . . . . . . . . . . . . 1 . . Corruption 1 | . . . . . . . . . . . . . . . . . . . . 1 . . Feedback Blocked . | . . . . . . . . . . . . . . . . . . . . . . . Robot Schematics Acquired 1 | . . . . . . . . . . 1 . . . . . . . . . . . . Robots Built . | . . . . . . . . . . . . . . . . . . . . . . . Matter . | . . . . . . . . . . . . . . . . . . . . . . . Time . | . . . . . . . . . . . . . . . . . . . . . . . Total Robot Build Rating . | . . . . . . . . . . . . . . . . . . . . . . . Part Schematics Acquired 3 | . 1 . . 1 . 1 . . . . . . . . . . . . . . . . Parts Built 1 | . . . . . . . . . . . . . . . . . . . . 1 . . Matter 102 | . . . . . . . . . . . . . . . . . . . . 102 . . Time 25 | . . . . . . . . . . . . . . . . . . . . 25 . . Total Part Build Rating 1 | . . . . . . . . . . . . . . . . . . . . 1 . . Parts Repaired 4 | . . . . 1 . . . 1 . . . . . 1 . . . . . 1 . . Time 123 | . . . . 25 . . . 32 . . . . . 22 . . . . . 44 . . Parts Recycled . | . . . . . . . . . . . . . . . . . . . . . . . Recycled Matter . | . . . . . . . . . . . . . . . . . . . . . . . Retrieved Matter . | . . . . . . . . . . . . . . . . . . . . . . . Retrieved Components 21 | . 8 . 10 . . . . . . . . 3 . . . . . . . . . . Parts Scanalyzed 2 | . . . . 1 . 1 . . . . . . . . . . . . . . . . Part Schematics Acquired 2 | . . . . 1 . 1 . . . . . . . . . . . . . . . . Parts Damaged . | . . . . . . . . . . . . . . . . . . . . . . . Bothacking | -11 -10 -10 -9 -8 -8 -8 -8 -7 -7 -7 -7 -6 -6 -6 -6 -5 -5 -5 -5 -4 -4 -3 ------------ Run | Scr Mat Min Mat Mat Gar Mat Gar Fac Gar Fac Gar Fac Gar Fac Gar Fac Gar Fac Gar Fac Gar Res Used RIF Installer 9 | . . . . . 1 . 1 . 1 . 1 . 1 . 1 . 1 . 1 . 1 . Robot Detection 1 | . . . . . . . . . . . . . . . 1 . . . . . . . Patrol Navigation 1 | . . . . . . . . . . . . . . . . . . . 1 . . . Alert ID Control 1 | . . . . . . . 1 . . . . . . . . . . . . . . . Structural Interface 1 | . . . . . . . . . 1 . . . . . . . . . . . . . Program Shield 1 | . . . . . . . . . . . . . 1 . . . . . . . . . Autooverride 1 | . . . . . . . . . . . 1 . . . . . . . . . . . Autoassimilate 2 | . . . . . . . . . . . . . . . . . 1 . . . 1 . Robots Hacked 141 | . . . . . 3 . 5 1 . 4 3 12 7 12 11 7 13 2 22 6 10 23 Non-combat 14 | . . . . . . . . 1 . 1 . 2 . . 1 2 . 1 . 2 . 4 Combat 127 | . . . . . 3 . 5 . . 3 3 10 7 12 10 5 13 1 22 4 10 19 Autooverrided 31 | . . . . . . . . . . . . 3 2 3 4 2 3 1 4 2 1 6 Autoassimilated 14 | . . . . . . . . . . . . . . . . . . . 6 1 2 5 Robot Hacks Applied 107 | . . . . . 3 . 5 1 . 4 3 12 5 9 7 6 10 2 13 4 8 15 parse_system 1 | . . . . . . . . . . . . . . . . 1 . . . . . . find_chute 1 | . . . . . . . . 1 . . . . . . . . . . . . . . drop_inventory 6 | . . . . . . . . . . 1 . 1 . . . . . 1 . . . 3 locate_stockpiles 2 | . . . . . . . . . . . . 1 . . . . . . . . . 1 find_recycling 1 | . . . . . . . . . . . . 1 . . . . . . . . . . purge_threat 2 | . . . . . . . . . . . . . . . . . . . . 2 . . map_route 2 | . . . . . . . . . . . . . . . . . . . . 1 . 1 find_garrison 5 | . . . . . . . . . . . . 1 . 1 . 1 . 1 . . . 1 disrupt_area 2 | . . . . . . . . . . . . . . . . . . . 1 . . 1 spike_heat 6 | . . . . . 1 . . . . . . . . 3 . . 1 . . . 1 . overload_power 1 | . . . . . . . . . . . . 1 . . . . . . . . . . reboot_system 1 | . . . . . . . . . . . . 1 . . . . . . . . . . overwrite_iff 7 | . . . . . . . . . . . . . 2 . 1 . 1 . 3 . . . formatsys_low 3 | . . . . . . . . . . . . 1 . . . 2 . . . . . . formatsys_high 67 | . . . . . 2 . 5 . . 3 3 5 3 5 6 2 8 . 9 1 7 8 Relay Couplers Released 155 | . . . . . 12 8 16 . 23 1 13 . 15 . 12 3 15 3 15 . 19 . Ejected 10 | . . . . . . 4 . . . . . . . . . 3 . 3 . . . . Machine Destruction 141 | . . . . . 12 . 16 . 23 1 13 . 15 . 12 . 15 . 15 . 19 . Programmers 4 | . . . . . . 4 . . . . . . . . . . . . . . . . Attached 61 | . . . . . 2 . 3 1 1 3 3 5 3 3 6 3 6 1 6 3 2 10 Robots Rewired 18 | . . . . . . . . 2 6 . . . . . . . . . 9 . . 1 Allies Hacked 1 | . . . . . . . . . . . 1 . . . . . . . . . . . Hacks Repelled . | . . . . . . . . . . . . . . . . . . . . . . . Allies | -11 -10 -10 -9 -8 -8 -8 -8 -7 -7 -7 -7 -6 -6 -6 -6 -5 -5 -5 -5 -4 -4 -3 -------- Run | Scr Mat Min Mat Mat Gar Mat Gar Fac Gar Fac Gar Fac Gar Fac Gar Fac Gar Fac Gar Fac Gar Res Total Allies 141 | . . . . . 2 . 5 2 6 3 3 9 7 8 11 10 12 1 30 4 9 19 Largest Group 17 | . . . . . 2 1 2 4 4 3 4 3 4 6 5 8 9 7 17 17 7 9 Highest-Rated Group 505 | . . . . . 32 16 32 64 63 96 126 114 109 179 158 271 357 296 490 505 233 465 Highest-Rated Ally 81 | . . . . . 16 16 16 16 21 32 32 41 32 41 47 49 81 49 49 49 49 64 Total Orders 90 | . . . . . . . . 3 . . 2 2 8 4 21 10 10 6 13 4 4 3 STAY 16 | . . . . . . . . 1 . . . . . . 4 1 3 . 4 2 . 1 GOTO 27 | . . . . . . . . 2 . . 1 . 1 1 6 3 3 2 4 1 2 1 FOLLOW 30 | . . . . . . . . . . . 1 . 3 1 4 4 4 4 5 1 2 1 DROP 5 | . . . . . . . . . . . . . 1 . 3 1 . . . . . . PICKUP 2 | . . . . . . . . . . . . 2 . . . . . . . . . . COLLECT 7 | . . . . . . . . . . . . . 3 . 4 . . . . . . . EXPLORE 3 | . . . . . . . . . . . . . . 2 . 1 . . . . . . Ally Attacks 976 | . . . . . 6 4 39 43 55 6 31 22 30 107 50 48 93 16 115 170 24 117 Total Damage 24214 | . . . . . 95 45 578 506 894 100 824 429 552 2014 1331 1965 2862 478 3213 4102 382 3844 Kills 180 | . . . . . 3 . 5 4 11 2 12 1 3 17 11 15 13 6 23 30 7 17 Allies Corrupted . | . . . . . . . . . . . . . . . . . . . . . . . Allies Melted 3 | . . . . . . . . . . . . . . 1 1 . 1 . . . . . Intel | -11 -10 -10 -9 -8 -8 -8 -8 -7 -7 -7 -7 -6 -6 -6 -6 -5 -5 -5 -5 -4 -4 -3 ------- Run | Scr Mat Min Mat Mat Gar Mat Gar Fac Gar Fac Gar Fac Gar Fac Gar Fac Gar Fac Gar Fac Gar Res Robot Analysis Total 2 | . 1 . 1 . . . . . . . . . . . . . . . . . . . Derelict Logs Recovered 1 | . . 1 . . . . . . . . . . . . . . . . . . . . Drone Launches 4 | . . . . . . . . . . . . . . 2 . 2 . . . . . . Drone Recoveries . | . . . . . . . . . . . . . . . . . . . . . . . Exploration | -11 -10 -10 -9 -8 -8 -8 -8 -7 -7 -7 -7 -6 -6 -6 -6 -5 -5 -5 -5 -4 -4 -3 ------------- Run | Scr Mat Min Mat Mat Gar Mat Gar Fac Gar Fac Gar Fac Gar Fac Gar Fac Gar Fac Gar Fac Gar Res Turns Passed 32861 | 89 1447 769 1839 1763 985 401 1614 470 1777 893 2001 1074 2092 1554 2793 1097 2670 573 2401 743 2029 1787 Spaces Moved 16455 | 45 678 327 664 858 526 206 873 189 796 518 1058 599 990 674 1324 556 1516 312 1369 397 1096 884 Core 6 | 5 . . . . . . . . . . . . . . . . . . . . . 1 Treads 2094 | 40 678 327 364 53 7 . 37 26 496 . 8 . 1 . . . . . . . . 57 Legs 7115 | . . . 7 . . . . . . . . . 979 674 1324 556 1516 312 496 46 1096 109 Wheels 7240 | . . . 293 805 519 206 836 163 300 518 1050 599 10 . . . . . 873 351 . 717 Hover . | . . . . . . . . . . . . . . . . . . . . . . . Flight . | . . . . . . . . . . . . . . . . . . . . . . . Fastest Speed 50 | 50 160 180 160 130 130 130 130 130 130 130 130 130 130 150 180 150 150 150 120 140 150 110 Average Speed 155 | 147 172 181 191 133 131 130 134 147 170 130 135 130 179 179 180 174 156 154 146 160 151 139 Slowest Speed 1450 | 160 180 220 240 240 260 130 240 240 260 130 270 130 260 180 210 180 180 270 245 210 210 1450 Overloaded Moves . | . . . . . . . . . . . . . . . . . . . . . . . Propulsion Burnouts . | . . . . . . . . . . . . . . . . . . . . . . . Robots Hopped . | . . . . . . . . . . . . . . . . . . . . . . . Cave-ins Triggered . | . . . . . . . . . . . . . . . . . . . . . . . Exploration Rate (%) 52 | 4 94 49 52 64 70 14 87 4 92 8 96 13 98 18 95 13 98 5 97 10 98 18 Regions Visited 22 Branch Regions 1 Pre-discovered Areas 7 | . 2 1 1 . . 1 . . . . . 1 . 1 . . . . . . . . Known Exits Taken 9 | . . . . 1 . 1 . 1 . 1 . 1 . 1 . 1 . 1 . 1 . . Unknown Exits Taken 4 | 1 1 1 1 . . . . . . . . . . . . . . . . . . . Scrap Searched . | . . . . . . . . . . . . . . . . . . . . . . . Spaces Dug 116 | . . . . 20 12 3 2 21 3 . 1 2 . 3 . 9 8 . . 12 . 20 Terrain Destroyed 584 | . . 6 11 117 27 11 35 58 15 24 24 20 15 16 4 12 19 7 24 12 67 60 Melee 6 | . . . . . . 3 1 . . . . 2 . . . . . . . . . . Projectile 90 | . . . . 8 . . 1 . . . 8 9 6 16 4 5 5 7 3 1 9 8 AOE 488 | . . 6 11 109 27 8 33 58 15 24 16 9 9 . . 7 14 . 21 11 58 52 Actions | -11 -10 -10 -9 -8 -8 -8 -8 -7 -7 -7 -7 -6 -6 -6 -6 -5 -5 -5 -5 -4 -4 -3 --------- Run | Scr Mat Min Mat Mat Gar Mat Gar Fac Gar Fac Gar Fac Gar Fac Gar Fac Gar Fac Gar Fac Gar Res Total 21208 | 59 806 400 1004 1180 678 285 1124 320 1071 691 1477 781 1218 887 1664 662 1762 375 1675 471 1368 1250 Wait 1313 | . 18 4 121 51 10 30 20 45 36 70 154 70 84 73 204 34 51 21 73 17 58 69 Move 16435 | 44 677 326 663 858 524 205 872 189 795 518 1057 598 989 673 1323 555 1515 311 1368 396 1095 884 Hop . | . . . . . . . . . . . . . . . . . . . . . . . Pick Up 348 | 6 19 4 30 24 12 3 14 11 27 14 10 5 18 13 17 13 24 6 17 5 29 27 Fast Attach 172 | 6 3 . 14 9 2 4 4 1 8 8 4 5 6 6 10 5 7 11 19 6 7 27 Attach 197 | . 1 5 18 14 6 1 5 6 13 4 5 7 9 8 6 5 7 4 11 6 16 40 Detach 14 | . . . 3 . . 1 . . 1 1 . . . . . 1 . . 2 . 1 4 Swap 303 | . 4 6 5 20 18 6 23 16 18 13 34 19 12 21 15 8 10 . 17 8 12 18 Drop 370 | . 9 . 20 35 8 7 19 12 22 26 17 9 16 14 24 16 32 6 26 7 13 32 Fire 1451 | 3 75 53 130 169 56 25 92 36 83 36 71 61 54 72 45 24 56 15 86 26 92 91 Melee 137 | . . . . . 24 3 20 3 4 1 11 7 . 5 . . . . 12 . . 47 Ram 1 | . . . . . . . . . . . . . . . . . . . . . . 1 Kick 1 | . . . . . . . . . . . . . . 1 . . . . . . . . Crush 11 | . . 2 . . . . 1 1 1 . 2 . . . . . . . . . . 4 Escape Stasis 373 | . . . . . 18 . 54 . 16 . 112 . 30 . 20 . 60 . 14 . 45 4 Rewire 80 | . . . . . . . . . 47 . . . . . . . . 1 30 . . 2 Trap . | . . . . . . . . . . . . . . . . . . . . . . . Miscellaneous 2 | . . . . . . . . . . . . . . 1 . 1 . . . . . . Route ------- -11/Scrapyard -10/Materials (discovered 5 exits: *Mat x3 / [*Min x2]) -10/Mines -9/Materials (discovered 2 exits: *Mat / Min) -8/Materials (discovered 3 exits: *Fac x2 / Gar) -8/Garrison (discovered 2 exits: *Mat x2) -8/Materials -8/Garrison (discovered 3 exits: *Fac x3) -7/Factory (discovered 2 exits: [*Low] / Gar) -7/Garrison (discovered 2 exits: *Fac x2) -7/Factory (discovered 2 exits: [*Low] / Gar) -7/Garrison (discovered 3 exits: *Fac x3) -6/Factory -6/Garrison (discovered 3 exits: *Fac x3) -6/Factory (discovered 3 exits: *Low x2 / Gar) -6/Garrison (discovered 3 exits: *Fac x3) -5/Factory -5/Garrison (discovered 3 exits: *Fac x3) -5/Factory -5/Garrison (discovered 3 exits: *Fac x3) -4/Factory (discovered 2 exits: [*Upp] / Gar) -4/Garrison (discovered 3 exits: *Res x3) -3/Research (discovered 2 exits: [Res] / [Tes]) History --------- Turn | Location | Event 27 | -11/Scrapyard | Discovered new exit (range 16) 90 | -11/Scrapyard | Entered Materials 314 | -10/Materials | Build established: Mutant 365 | -10/Materials | Discovered new exit (range 12) 870 | -10/Materials | Discovered new exit (range 16) 910 | -10/Materials | Build established: Hauler-Mutant 1042 | -10/Materials | Discovered new exit (range 17) 1225 | -10/Materials | Core integrity fell below 50% 1286 | -10/Materials | Discovered new exit (range 16) 1436 | -10/Materials | Discovered new exit (range 7) 1537 | -10/Materials | Entered Mines 1580 | -10/Mines | Assembled infested the area 1585 | -10/Mines | Assisted by a Guerilla fighting off Assembled 1645 | -10/Mines | Discovered new exit (range 6) 1758 | -10/Mines | Lost 3 parts (1p2n) 1848 | -10/Mines | Core integrity fell below 20% 2059 | -10/Mines | Learned location of Storage (-7) 2306 | -10/Mines | Entered Materials 2306 | -9/Materials | Evolved 2 slots: Utility x2 2885 | -9/Materials | Identified exit to Mines 3022 | -9/Materials | Lost 3 parts (1u2w) 3128 | -9/Materials | Core integrity fell below 50% 3289 | -9/Materials | Lost 3 parts (1p1n1u) 3401 | -9/Materials | Discovered new exit (range 5) 3941 | -9/Materials | System corruption reached 10% 4145 | -9/Materials | Entered another Materials area 4145 | -8/Materials | Evolved 2 slots: Propulsion x1, Utility x1 4970 | -8/Materials | Discovered new exit (range 16) 5296 | -8/Materials | Repaired Cmb. Airjet 5745 | -8/Materials | First assault squad dispatched 5771 | -8/Materials | Garrison activated, responded to threat 5802 | -8/Materials | Destroyed 10 combat bots 5804 | -8/Materials | Discovered new exit (range 16) 5908 | -8/Materials | Identified exit to Garrison 5908 | -8/Materials | Entered Garrison 5915 | -8/Garrison | Installed Relay Interface Framework 5949 | -8/Garrison | Triggered checkpoint 6045 | -8/Garrison | Garrison Relay disabled 6109 | -8/Garrison | Triggered checkpoint 6132 | -8/Garrison | Triggered checkpoint 6171 | -8/Garrison | Core integrity fell below 50% 6174 | -8/Garrison | Destroyed 7 combat bots 6186 | -8/Garrison | Triggered checkpoint 6460 | -8/Garrison | Triggered checkpoint 6523 | -8/Garrison | Garrison Relay disabled 6594 | -8/Garrison | Triggered checkpoint 6607 | -8/Garrison | Discovered new exit (range 14) 6704 | -8/Garrison | Triggered checkpoint 6776 | -8/Garrison | Triggered checkpoint 6807 | -8/Garrison | Garrison Relay disabled 6839 | -8/Garrison | Build established: Bothacker-Mutant 6867 | -8/Garrison | Discovered new exit (range 8) 6893 | -8/Garrison | Entered Materials 6893 | -8/Materials | Accompanied by 1 ally 7286 | -8/Materials | Identified exit to Garrison 7294 | -8/Materials | Entered Garrison 7306 | -8/Garrison | Triggered checkpoint 7489 | -8/Garrison | Triggered checkpoint 7508 | -8/Garrison | Garrison Relay disabled 7618 | -8/Garrison | Triggered checkpoint 7699 | -8/Garrison | Triggered checkpoint 7753 | -8/Garrison | Garrison Relay disabled 7833 | -8/Garrison | Discovered new exit (range 9) 7852 | -8/Garrison | Expanded RIF knowledge: Alert ID Control 8006 | -8/Garrison | Triggered checkpoint 8020 | -8/Garrison | Core integrity fell below 20% 8184 | -8/Garrison | Discovered new exit (range 10) 8202 | -8/Garrison | Triggered checkpoint 8234 | -8/Garrison | Garrison Relay disabled 8314 | -8/Garrison | Triggered checkpoint 8356 | -8/Garrison | Triggered checkpoint 8619 | -8/Garrison | Discovered new exit (range 12) 8632 | -8/Garrison | Triggered checkpoint 8780 | -8/Garrison | Garrison Relay disabled 8908 | -8/Garrison | Entered Factory 8908 | -7/Factory | Accompanied by 2 allies 8908 | -7/Factory | Evolved 2 slots: Power x1, Utility x1 9075 | -7/Factory | Repaired Mni. Grenade Launcher 9150 | -7/Factory | Discovered new exit (range 9) 9155 | -7/Factory | Garrison activated, responded to threat 9378 | -7/Factory | Identified exit to Garrison 9378 | -7/Factory | Entered Garrison 9405 | -7/Garrison | Lost 3 parts (2p1u) 9524 | -7/Garrison | Build established: Hauler-Mutant 9572 | -7/Garrison | Triggered checkpoint 9594 | -7/Garrison | Triggered checkpoint 9644 | -7/Garrison | Triggered checkpoint 9702 | -7/Garrison | Lost 4 parts (2n1u1w) 9730 | -7/Garrison | Garrison Relay disabled 9785 | -7/Garrison | Discovered new exit (range 15) 9819 | -7/Garrison | Expanded RIF knowledge: Structural Interface 9901 | -7/Garrison | Build established: Scavenger-Mutant 10133 | -7/Garrison | Triggered checkpoint 10175 | -7/Garrison | Lost 5 parts (2p1u2w) 10204 | -7/Garrison | Triggered checkpoint 10224 | -7/Garrison | Garrison Relay disabled 10333 | -7/Garrison | Garrison Relay disabled 10417 | -7/Garrison | Discovered new exit (range 7) 10544 | -7/Garrison | Triggered checkpoint 10660 | -7/Garrison | Triggered checkpoint 10816 | -7/Garrison | Garrison Relay disabled 10884 | -7/Garrison | Triggered checkpoint 10960 | -7/Garrison | Triggered checkpoint 11024 | -7/Garrison | Garrison Relay disabled 11155 | -7/Garrison | Entered Factory 11155 | -7/Factory | Accompanied by 2 allies 11261 | -7/Factory | Garrison activated, responded to threat 11369 | -7/Factory | Discovered new exit (range 8) 11478 | -7/Factory | Garrison activated, responded to threat 11488 | -7/Factory | Core integrity fell below 50% 11811 | -7/Factory | Build established: Bothacker-Mutant 12043 | -7/Factory | Identified exit to Garrison 12048 | -7/Factory | Entered Garrison 12048 | -7/Garrison | Accompanied by 3 allies 12076 | -7/Garrison | Triggered checkpoint 12106 | -7/Garrison | Garrison Relay disabled 12124 | -7/Garrison | Lost 3 parts (1n2u) 12224 | -7/Garrison | Triggered checkpoint 12226 | -7/Garrison | Triggered checkpoint 12231 | -7/Garrison | Triggered checkpoint 12238 | -7/Garrison | Triggered checkpoint 12266 | -7/Garrison | Destroyed 7 combat bots 12442 | -7/Garrison | Discovered new exit (range 10) 12466 | -7/Garrison | Expanded RIF knowledge: Autooverride 12490 | -7/Garrison | Triggered checkpoint 12539 | -7/Garrison | Garrison Relay disabled 12754 | -7/Garrison | Build established: Botlord-Mutant 12824 | -7/Garrison | Discovered new exit (range 14) 12849 | -7/Garrison | Triggered checkpoint 12919 | -7/Garrison | Triggered checkpoint 12932 | -7/Garrison | P-60 Hacker assimilated allied Guardian 4b 13055 | -7/Garrison | Garrison Relay disabled 13521 | -7/Garrison | Discovered new exit (range 10) 13562 | -7/Garrison | Garrison Relay disabled 13644 | -7/Garrison | Triggered checkpoint 14049 | -7/Garrison | Entered Factory 14049 | -6/Factory | Accompanied by 2 allies 14049 | -6/Factory | Evolved 2 slots: Utility x1, Weapon x1 14547 | -6/Factory | Build established: Botlord-Gunner 15011 | -6/Factory | Build established: Botlord-Mutant 15118 | -6/Factory | Identified exit to Garrison 15123 | -6/Factory | Entered Garrison 15123 | -6/Garrison | Accompanied by 1 ally 15208 | -6/Garrison | Triggered checkpoint 15238 | -6/Garrison | Garrison Relay disabled 15490 | -6/Garrison | Triggered checkpoint 15490 | -6/Garrison | Triggered checkpoint 15493 | -6/Garrison | Triggered checkpoint 15537 | -6/Garrison | Lost 5 parts (2p3w) 15592 | -6/Garrison | Build established: Botlord-Gunner 15754 | -6/Garrison | Discovered new exit (range 12) 15784 | -6/Garrison | Expanded RIF knowledge: Program Shield 15848 | -6/Garrison | Triggered checkpoint 15912 | -6/Garrison | Garrison Relay disabled 16088 | -6/Garrison | Triggered checkpoint 16148 | -6/Garrison | Triggered checkpoint 16205 | -6/Garrison | Garrison Relay disabled 16248 | -6/Garrison | Discovered new exit (range 10) 16410 | -6/Garrison | Triggered checkpoint 16445 | -6/Garrison | Garrison Relay disabled 16496 | -6/Garrison | Discovered new exit (range 14) 17215 | -6/Garrison | Entered Factory 17215 | -6/Factory | Accompanied by 4 allies 17341 | -6/Factory | Spotted B-75 Beast 17369 | -6/Factory | Allies destroyed B-75 Beast 17444 | -6/Factory | Identified exit to Lower Caves 17961 | -6/Factory | Garrison activated, responded to threat 18151 | -6/Factory | Identified exit to Garrison 18166 | -6/Factory | Core integrity fell below 50% 18334 | -6/Factory | Repaired Imp. Carbon-fiber Leg 18492 | -6/Factory | Build established: Botlord-Mutant 18769 | -6/Factory | Entered Garrison 18769 | -6/Garrison | Accompanied by 1 ally 18973 | -6/Garrison | Garrison Relay disabled 18974 | -6/Garrison | Triggered checkpoint 19074 | -6/Garrison | Triggered checkpoint 19326 | -6/Garrison | Triggered checkpoint 19456 | -6/Garrison | Discovered new exit (range 5) 19528 | -6/Garrison | Triggered checkpoint 19592 | -6/Garrison | Triggered checkpoint 19744 | -6/Garrison | Discovered new exit (range 15) 19785 | -6/Garrison | Expanded RIF knowledge: Robot Detection 19830 | -6/Garrison | Triggered checkpoint 19843 | -6/Garrison | Garrison Relay disabled 19884 | -6/Garrison | Triggered checkpoint 20072 | -6/Garrison | Discovered new exit (range 14) 20220 | -6/Garrison | Triggered checkpoint 20230 | -6/Garrison | Build established: Botlord-Gunner 20316 | -6/Garrison | Garrison Relay disabled 20332 | -6/Garrison | Triggered checkpoint 20620 | -6/Garrison | Build established: Botlord-Mutant 21135 | -6/Garrison | Garrison Relay disabled 21562 | -6/Garrison | Entered Factory 21562 | -5/Factory | Accompanied by 4 allies 21562 | -5/Factory | Evolved 2 slots: Propulsion x1, Utility x1 21822 | -5/Factory | Found Unknown Protection 21822 | -5/Factory | Identified Powered Armor 21826 | -5/Factory | Found Powered Armor 21829 | -5/Factory | Found Powered Armor 21849 | -5/Factory | Found Powered Armor 21862 | -5/Factory | First assault squad dispatched 22034 | -5/Factory | Garrison activated, responded to threat 22615 | -5/Factory | Identified exit to Garrison 22659 | -5/Factory | Entered Garrison 22659 | -5/Garrison | Accompanied by 6 allies 22896 | -5/Garrison | Triggered checkpoint 22927 | -5/Garrison | Garrison Relay disabled 23071 | -5/Garrison | Triggered checkpoint 23088 | -5/Garrison | Triggered checkpoint 23091 | -5/Garrison | Spotted B-75 Beast 23110 | -5/Garrison | Triggered checkpoint 23112 | -5/Garrison | Destroyed B-75 Beast 23121 | -5/Garrison | Triggered checkpoint 23606 | -5/Garrison | Discovered new exit (range 9) 23624 | -5/Garrison | Triggered checkpoint 23641 | -5/Garrison | Garrison Relay disabled 23696 | -5/Garrison | Expanded RIF knowledge: Autoassimilate 23826 | -5/Garrison | Triggered checkpoint 23836 | -5/Garrison | Discovered new exit (range 14) 23881 | -5/Garrison | Triggered checkpoint 23955 | -5/Garrison | Garrison Relay disabled 24400 | -5/Garrison | Triggered checkpoint 24420 | -5/Garrison | Garrison Relay disabled 24504 | -5/Garrison | Discovered new exit (range 10) 24618 | -5/Garrison | Spotted B-75 Beast 24686 | -5/Garrison | Allies destroyed B-75 Beast 25051 | -5/Garrison | Found Enh. Force Lance 25175 | -5/Garrison | Found Quantum Capacitor 25329 | -5/Garrison | Entered Factory 25329 | -5/Factory | Accompanied by 7 allies 25862 | -5/Factory | Identified exit to Garrison 25902 | -5/Factory | Entered Garrison 25902 | -5/Garrison | Accompanied by 2 allies 25946 | -5/Garrison | Triggered checkpoint 25989 | -5/Garrison | Garrison Relay disabled 26059 | -5/Garrison | Triggered checkpoint 26066 | -5/Garrison | Triggered checkpoint 26164 | -5/Garrison | Triggered checkpoint 26169 | -5/Garrison | Triggered checkpoint 26492 | -5/Garrison | Discovered new exit (range 10) 26577 | -5/Garrison | Expanded RIF knowledge: Patrol Navigation 26650 | -5/Garrison | Triggered checkpoint 26944 | -5/Garrison | Garrison Relay disabled 27108 | -5/Garrison | Triggered checkpoint 27151 | -5/Garrison | Garrison Relay disabled 27191 | -5/Garrison | Discovered new exit (range 10) 27302 | -5/Garrison | Triggered checkpoint 27520 | -5/Garrison | Triggered checkpoint 27576 | -5/Garrison | Triggered checkpoint 27622 | -5/Garrison | Triggered checkpoint 27729 | -5/Garrison | Garrison Relay disabled 27965 | -5/Garrison | Discovered new exit (range 14) 28303 | -5/Garrison | Entered Factory 28303 | -4/Factory | Accompanied by 17 allies 28303 | -4/Factory | Evolved 2 slots: Utility x2 28482 | -4/Factory | Fabricated Hcp. Storage Unit? 28532 | -4/Factory | Repaired Powered Armor? 28758 | -4/Factory | Discovered new exit (range 16) 28784 | -4/Factory | Garrison activated, responded to threat 28786 | -4/Factory | Garrison activated, responded to threat 29030 | -4/Factory | Identified exit to Garrison 29046 | -4/Factory | Entered Garrison 29081 | -4/Garrison | Triggered checkpoint 29128 | -4/Garrison | Garrison Relay disabled 29360 | -4/Garrison | Lost 6 parts (2p2u2w) 29378 | -4/Garrison | Triggered checkpoint 29380 | -4/Garrison | Triggered checkpoint 29438 | -4/Garrison | Destroyed 10 combat bots 29455 | -4/Garrison | Lost 3 parts (2n1u) 29546 | -4/Garrison | Triggered checkpoint 29780 | -4/Garrison | Discovered new exit (range 14) 29807 | -4/Garrison | Expanded RIF knowledge: Autoassimilate 29920 | -4/Garrison | Discovered new exit (range 10) 29946 | -4/Garrison | Triggered checkpoint 29965 | -4/Garrison | Garrison Relay disabled 30094 | -4/Garrison | Triggered checkpoint 30170 | -4/Garrison | Triggered checkpoint 30207 | -4/Garrison | Garrison Relay disabled 30300 | -4/Garrison | Discovered new exit (range 10) 30571 | -4/Garrison | Garrison Relay disabled 30693 | -4/Garrison | Triggered checkpoint 30733 | -4/Garrison | Garrison Relay disabled 31075 | -4/Garrison | Entered Research 31075 | -3/Research | Accompanied by 5 allies 31075 | -3/Research | Evolved 2 slots: Utility x2 31857 | -3/Research | Discovered new exit (range 158) 31857 | -3/Research | Discovered new exit (range 136) 32339 | -3/Research | Found Vibroblade 32342 | -3/Research | Found Vibroblade 32443 | -3/Research | Lost 8 parts (1p1n3u3w) 32589 | -3/Research | Core integrity fell below 50% 32638 | -3/Research | Lost 17 parts (2p6n3u6w) 32650 | -3/Research | System corruption reached 10% 32689 | -3/Research | Core integrity fell below 20% 32751 | -3/Research | Lost 8 parts (2p3n2u1w) 32862 | -3/Research | Destroyed by H-77 Assassin with Coil Gun Last Messages --------------- 32840_ R-10 Processor collects Unknown Storage. 32843_ Slug penetrates Wall. 32845_ System corrupted: Energy discharge (-57). 32846_ Destroyed Adv. Heat Sink. 32846_ Destroyed Unknown Hover Unit. 32846_ Slug penetrates Wall. 32846_ Penetrated by Slug. 32847_ Adv. Heat Sink destroyed. 32850_ Slug penetrates P-80 Master. 32850_ P-80 Master destroyed. 32854_ Slug penetrates Wall. 32854_ Arm. Medium Treads destroyed. 32856_ Y-72 Warden destroyed. 32856_ Slug penetrates Wall. 32857_ Lgt. Particle Reactor destroyed. 32857_ R-10 Processor collects Mic. Fission Core. 32859_ Slug penetrates Wall. 32859_ Med. Treads destroyed. 32861_ System corrupted: Matter fused (-10). 32861_ R-10 Processor collects Prototype Energy Gun. Map ----- +----------------------------------------------------+ | ?????????????????????????????????????? | | """"""" ?????????????????????????????????????? | | """"""? ?????????????????????????????????????? | | """"""" ?????????????????????????????????????? | | ?????????????????????????????????????? | | ?????????????????????????????????????? | | ?????????????????????????????????????? | | /############????????????????????????????????????? | | #???????????????????????????????????????????? | | #???????????????????????????????????????????? | | #???????????????????????????????????????????? | | """ #???????????????????????????????????????????? | | """ #???????????????????????????????????????????? | | """ #???????????????????????????????????????????? | | #?????????????????????#####?????????????????? | | #????????????????????? #?????????????????? | | ######????????????????????? ??????????????????? | | #####?????????????????????? ??????????????????? | | ??????????????????????? ???????????????????? | | ??????????????????????? ???????????????????? | | ! ???????????????????????# #???????????????????? | | #####??????????????????????# #???????????????????? | | #??????????????########### ###?????????????????? | | #??????????????# =# R #?????????????????? | | #??????????????# *#p|* #?????????????????? | | !#??????????????# %%@=! #?????????????????? | | #??????????????# [[#h #?????????????????? | | #??????????????# !#!hg *#?????????????????? | | ###??##########??###########/#####+#?????????????? | | ##### ! #########!% #?????????????? | | + + %/ [/[% #?????????????? | | ##### """ ######### #?????????????? | | ##???# """ #???????# ! #?????????????? | | ###### """!%=#???????# #?????????????? | | + """ #???????##############?????????????? | | ###### """ #??????????????????????????????????? | | ?###?# ! % #??????????????????????????????????? | | ?# ##=!!% #??????????????????????????????????? | | ## ###/###########???????????????????????????????? | | != /%=*%| # #??? ??????????????????????????? | | [%= %=%= # #? ?????????????????????????????? | | [ *=[[% # #? ??????? ??#?#????????????????? | | #######=#! #!%= #??"???"??? ????#???????????????? | | ## #%= #%% #? ?"???????????????????????????? | | # #### #%%[# %%=#?? ?"""?? ???????????????????? | | # !!! #=%%#[%%%#? ? ?????#??#??????????????? | | # !! +| !+%!%[# ????? ?? ??#???#?????????????? | | # !! #! #[[%=#?#?###+##?#??#?#??? ???????????? | | #########*%*####/#???# ??? ?????????????????? | | ######## =!%!###!##### ?? ? ? ? ???????????? | +----------------------------------------------------+ Best States ------------- Heat Dissipation 193 Coolant Potential 50 Energy Generation 39 Energy Capacity 910 Matter Stores 300 Matter Capacity 300 Sight Range 20 Robot Scan Range 20 Terrain Scan Range 24 Terrain Scan Density 210 Armor Coverage 600 Resistance: TH 30 Resistance: EM 15 Propulsion Shielding 33 Evasion (%) 40 Targeting Accuracy 8 Recoil Reduction 3 Offensive Hacking 10 Item Schematics ----------------- Hcp. Storage Unit | -10/Materials | Hacked Cmb. Airjet | -8/Materials | Scanalyzed Arm. Wheel | -8/Materials | Scanalyzed Robot Schematics ------------------ B-48 Gladiator | -7/Factory | Hacked Fabricated ------------ Hcp. Storage Unit | x1 | -4/Factory Alien Tech Used ----------------- None Achievements -------------- None Challenges ------------ None Game ------ Seed RagnarokSwarmPerforator Manual? 0 Play Time 04:20:52 Cumulative 439.0 hours Start 2020.08.31 @ 22:12:19 End 2020.09.01 @ 02:35:32 Sessions 1 Manual Loads 0 Difficulty Rogue Special Mode None Game No. 293 Rogue 293 Adventurer 0 Explorer 0 Win Type - Total 4 Types 4/0/0/0/0/0/0 Lore% 86 Gallery% 86 Achievement% 66 Wizard Run 0 Options --------- ASCII 0 Keyboard 0 Movement Mouse Keybinds 1 Fullscreen 2 Font 24/Smallcaps Map View 76x50 Tactical HUD 1 Map Filters NONE Filters NONE Steam 1 RUN: 35d36b2d-f3eb-4b80-b799-c4c92ab305f7